[Event "Bangabandhu Premier Div League 2023-24"]
[Site "Dhaka"]
[Date "2024.02.02"]
[Round "2.2"]
[White "Rathanvel, V S"]
[Black "Hasan Md, Emam"]
[Result "*"]
[ECO "C41"]
[WhiteElo "2474"]
[BlackElo "2053"]
[Annotator "RC"]
[PlyCount "77"]
[EventDate "2024.02.01"]
[EventCountry "BAN"]
[SourceTitle "playchess.com"]
[Source "ChessBase"]
[SourceQuality "1"]
[TimeControl "40/5400+30:1800+30"]

1. e4 {[%emt 1:31:00]} e5 {[%emt 0:27:09]} 2. Nf3 {[%emt 0:00:00]} d6 {[%emt 1:04:21]} 3. d4 {[%emt 0:00:00]} Nd7 {[%emt 0:00:00]} 4. Bc4 {[%emt 0:00:00]} c6 {[%emt 0:00:00]} 5. O-O {[%emt 0:00:00]} Be7 {[%emt 0:00:00]} 6. dxe5 {[%emt 0:00:00]} dxe5 {[%emt 0:00:00]} 7. Ng5 {[%emt 0:00:00]} Bxg5 {[%emt 0:00:00]} 8. Qh5 {[%emt 0:00:00]} Qe7 {[%emt 0:00:00]} 9. Bxg5 {[%emt 0:00:00]} Ngf6 {[%emt 0:00:00]} 10. Qh4 {[%emt 0:04:30]} O-O {[%emt 0:00:00]} 11. Nd2 {[%emt 0:00:00]} h6 {[%emt 0:00:00]} 12. Be3 {[%emt 0:01:00]} Nd5 {[%emt 0:05:00]} 13. Qxe7 {[%emt 0:00:00]} Nxe7 {[%emt 0:00:00]} 14. a4 {[%emt 0:00:00]} Ng6 {[%emt 0:00:00]} 15. a5 {[%emt 0:01:30]} Nf6 {[%emt 0:00:00]} 16. f3 {[%emt 0:00:00]} Re8 {[%emt 0:00:00]} 17. Ra4 {[%emt 0:01:00]} Nf4 {[%emt 0:00:00]} 18. Nb3 {[%emt 0:00:30]} Be6 {[%emt 0:00:00]} 19. Rd1 {[%emt 0:00:00]} Bxc4 {[%emt 0:00:00]} 20. Rxc4 {[%emt 0:00:00]} Red8 {[%emt 0:00:00]} 21. Rxd8+ {[%emt 0:00:00]} Rxd8 {[%emt 0:00:00]} 22. Rb4 {[%emt 0:02:00]} Rd1+ {[%emt 0:00:00]} 23. Kf2 {[%emt 0:00:00]} Rb1 {[%emt 0:00:00]} 24. Nc5 {[%emt 0:00:00]} Rh1 {[%emt 0:06:00]} 25. Rxb7 {[%emt 0:00:00]} Rxh2 {[%emt 0:00:30]} 26. Bxf4 {[%emt 0:00:00]} exf4 {[%emt 0:00:00]} 27. Kg1 {[%emt 0:00:00]} Rh4 {[%emt 0:01:00]} 28. Nd7 {[%emt 0:03:00]} Nxd7 {[%emt 0:00:00]} 29. Rxd7 {[%emt 0:00:00]} Rh5 {[%emt 0:00:00]} 30. Rxa7 {[%emt 0:00:00]} Rc5 {[%emt 0:00:00]} 31. c3 {[%emt 0:00:00]} Rb5 {[%emt 0:00:00]} 32. b4 {[%emt 0:00:00]} c5 {[%emt 0:00:00]} 33. a6 {[%emt 0:00:00]} cxb4 {[%emt 0:00:00]} 34. Rb7 {[%emt 0:03:00]} Ra5 {[%emt 0:00:00]} 35. a7 {[%emt 0:00:30]} bxc3 {[%emt 0:00:00]} 36. Rb8+ {[%emt 0:00:00]} Kh7 {[%emt 0:00:00]} 37. a8=Q {[%emt 0:00:00]} c2 {[%emt 0:00:00]} 38. Rh8+ {[%emt 0:00:00]} Kg6 {[%emt 0:00:00]} 39. Qc6+ {[%emt 0:00:00]} *

[Event "Bangabandhu Premier Div League 2023-24"]
[Site "Dhaka"]
[Date "2024.02.02"]
[Round "2.3"]
[White "Ankit Ray"]
[Black "Mohammed Abdul, Malek"]
[Result "1-0"]
[ECO "D34"]
[WhiteElo "1912"]
[BlackElo "2047"]
[Annotator "NA RC"]
[PlyCount "95"]
[EventDate "2024.02.01"]
[EventCountry "BAN"]
[SourceTitle "playchess.com"]
[Source "ChessBase"]
[SourceQuality "1"]
[TimeControl "40/5400+30:1800+30"]

1. Nf3 {[%emt 0:00:32]} Nf6 {[%emt 0:00:02]} 2. g3 {[%emt 0:00:14]} d5 {[%emt 0:00:05]} 3. Bg2 {[%emt 0:00:06]} c5 {[%emt 0:00:05]} 4. O-O {[%emt 0:00:12]} e6 {[%emt 0:00:04]} 5. d4 {[%emt 0:00:06]} cxd4 {[%emt 0:00:48]} 6. Nxd4 {[%emt 0:00:13]} Be7 7. c4 {[%emt 0:04:10]} O-O 8. cxd5 {[%emt 0:01:24]} exd5 {[%emt 0:01:02]} 9. Nc3 {[%emt 0:00:57]} Nc6 {[%emt 0:00:15]} 10. Nb3 {[%emt 0:00:43]} Be6 {[%emt 0:01:23]} 11. Bg5 {[%emt 1:27:23]} d4 {[%emt 0:16:30]} 12. Nb5 {[%emt 0:00:00]} Bxb3 {[%emt 1:16:16]} 13. axb3 {[%emt 0:00:00]} Qb6 {[%emt 0:00:00]} 14. Na3 {[%emt 0:00:00]} Rfd8 {[%emt 0:00:00]} 15. Nc4 {[%emt 0:00:00]} Qb5 {[%emt 0:00:00]} 16. Bd2 {[%emt 0:02:30]} Nd5 {[%emt 0:02:00]} 17. Rc1 {[%emt 0:00:30]} a5 {[%emt 0:00:30]} 18. Qc2 {[%emt 0:00:00]} Bf6 {[%emt 0:00:00]} 19. Be4 {[%emt 0:01:00]} g6 {[%emt 0:00:00]} 20. Qd3 {[%emt 0:00:30]} Bg7 {[%emt 0:00:00]} 21. Qf3 {[%emt 0:00:00]} d3 {[%emt 0:00:00]} 22. Bxd3 {[%emt 0:00:00]} Qxb3 {[%emt 0:02:30]} 23. Ra1 {[%emt 0:00:00]} Nd4 {[%emt 0:00:00]} 24. Qg2 {[%emt 0:00:00]} Qb5 {[%emt 0:00:00]} 25. Bxa5 {[%emt 0:02:30]} Nb4 {[%emt 0:00:00]} 26. Bxd8 {[%emt 0:00:00]} Rxd8 {[%emt 0:00:08]} 27. Rad1 {[%emt 0:00:00]} Nxd3 {[%emt 0:01:41]} 28. exd3 {[%emt 0:00:00]} Qb3 {[%emt 0:00:30]} 29. Rd2 {[%emt 0:00:00]} b5 {[%emt 0:00:04]} 30. Ne3 {[%emt 0:00:00]} h5 {[%emt 0:01:37]} 31. Kh1 {[%emt 0:00:00]} Bf8 {[%emt 0:00:00]} 32. Rb1 {[%emt 0:00:00]} Ne6 {[%emt 0:01:00]} 33. d4 {[%emt 0:00:00]} Rxd4 {[%emt 0:00:00]} 34. Rxd4 {[%emt 0:00:00]} Nxd4 {[%emt 0:01:00]} 35. Qe4 {[%emt 0:00:00]} Bg7 {[%emt 0:00:00]} 36. Kg2 {[%emt 0:00:00]} Kh7 {[%emt 0:00:00]} 37. Qd5 {[%emt 0:00:00]} f5 {[%emt 0:00:32]} 38. Qxb3 {[%emt 0:00:00]} Nxb3 {[%emt 0:00:02]} 39. Nd5 {[%emt 0:00:00]} Nc5 {[%emt 0:00:59]} 40. b4 {[%emt 0:00:00]} Na4 {[%emt 0:00:14]} 41. Rc1 {[%emt 0:22:30]} Nb2 {[%emt 0:30:22]} 42. Rc5 {[%emt 0:00:16]} Nd3 {[%emt 0:01:11]} 43. Rxb5 {[%emt 0:00:10]} Bd4 {[%emt 0:00:31]} 44. Rb7+ {[%emt 0:00:06]} Kh6 {[%emt 0:00:05]} 45. f4 {[%emt 0:00:12]} g5 {[%emt 0:00:20]} 46. Ne7 {[%emt 0:00:56]} Bc3 {[%emt 0:00:02]} 47. Rb6+ {[%emt 0:00:07]} Kh7 {[%emt 0:00:12]} 48. fxg5 {[%emt 0:00:05]} 1-0

[Event "Bangabandhu Premier Div League 2023-24"]
[Site "Dhaka"]
[Date "2024.02.02"]
[Round "2.4"]
[White "Harikrishnan.A.Ra"]
[Black "Tashriq Saihan, Shan"]
[Result "1-0"]
[ECO "D00"]
[WhiteElo "2454"]
[BlackElo "1772"]
[Annotator "RC"]
[PlyCount "140"]
[EventDate "2024.02.01"]
[EventCountry "BAN"]
[SourceTitle "playchess.com"]
[Source "ChessBase"]
[SourceQuality "1"]
[TimeControl "40/5400+30:1800+30"]

1. d4 Nf6 2. Nf3 g6 {[%emt 0:03:19]} 3. Nc3 d5 {[%emt 0:00:21]} 4. Bf4 Bg7 {[%emt 0:01:11]} 5. Nb5 Na6 {[%emt 0:00:58]} 6. e3 {[%emt 0:01:17]} O-O {[%emt 0:00:36]} 7. h3 c6 {[%emt 0:03:12]} 8. Nc3 {[%emt 0:00:08]} Nc7 9. Bd3 Ne6 {[%emt 0:03:23]} 10. Be5 {[%emt 1:34:05]} b6 {[%emt 1:22:30]} 11. O-O {[%emt 0:00:30]} Bb7 {[%emt 0:00:30]} 12. Nb1 {[%emt 0:00:30]} c5 {[%emt 0:00:00]} 13. c3 {[%emt 0:00:30]} Ne4 {[%emt 0:00:00]} 14. Bxg7 {[%emt 0:00:00]} Nxg7 {[%emt 0:00:00]} 15. Nbd2 {[%emt 0:00:00]} Nxd2 {[%emt 0:00:00]} 16. Qxd2 {[%emt 0:00:00]} Qd6 {[%emt 0:02:30]} 17. Rad1 {[%emt 0:00:00]} Rad8 {[%emt 0:00:00]} 18. Qe2 {[%emt 0:02:30]} Nh5 {[%emt 0:01:00]} 19. Rfe1 {[%emt 0:00:30]} Nf6 {[%emt 0:00:30]} 20. Qc2 {[%emt 0:00:00]} c4 {[%emt 0:00:30]} 21. Bf1 {[%emt 0:01:00]} Ne4 {[%emt 0:00:30]} 22. Nd2 {[%emt 0:00:30]} Nxd2 {[%emt 0:00:00]} 23. Rxd2 {[%emt 0:00:30]} f5 {[%emt 0:01:00]} 24. Qa4 {[%emt 0:00:00]} a6 {[%emt 0:00:30]} 25. b3 {[%emt 0:00:00]} b5 {[%emt 0:00:00]} 26. Qa5 {[%emt 0:01:30]} Rc8 {[%emt 0:00:00]} 27. Rb2 {[%emt 0:00:00]} f4 {[%emt 0:01:30]} 28. exf4 {[%emt 0:00:00]} Rxf4 {[%emt 0:00:30]} 29. Rbe2 {[%emt 0:00:00]} Rf7 {[%emt 0:00:30]} 30. Re6 {[%emt 0:02:00]} Qf4 {[%emt 0:00:30]} 31. f3 {[%emt 0:00:30]} Re8 {[%emt 0:00:30]} 32. R6e5 {[%emt 0:00:30]} Qg3 {[%emt 0:00:30]} 33. Kh1 {[%emt 0:00:30]} Bc8 {[%emt 0:00:30]} 34. Qa3 {[%emt 0:00:30]} Ref8 {[%emt 0:00:30]} 35. Rxe7 {[%emt 0:00:30]} Bxh3 {[%emt 0:00:30]} 36. R7e3 {[%emt 0:00:30]} Bd7 {[%emt 0:00:00]} 37. Qc1 {[%emt 0:00:00]} Rf4 {[%emt 0:00:00]} 38. R1e2 {[%emt 0:01:00]} Rh4+ {[%emt 0:00:00]} 39. Kg1 {[%emt 0:00:00]} Rh3 {[%emt 0:02:00]} 40. Rb2 {[%emt 0:01:00]} Qh2+ {[%emt 0:00:00]} 41. Kf2 {[%emt 0:29:28]} Bg4 {[%emt 0:30:28]} 42. Ke1 {[%emt 0:01:32]} Qg3+ {[%emt 0:01:02]} 43. Rf2 {[%emt 0:00:30]} Rh1 {[%emt 0:00:30]} 44. Qa3 {[%emt 0:00:30]} Rf7 {[%emt 0:00:30]} 45. Qxa6 {[%emt 0:00:00]} Qf4 {[%emt 0:00:00]} 46. Qa8+ {[%emt 0:00:00]} Kg7 {[%emt 0:00:00]} 47. Qe8 {[%emt 0:01:30]} Bf5 {[%emt 0:01:30]} 48. Qe5+ {[%emt 0:00:30]} Qxe5 {[%emt 0:00:00]} 49. dxe5 {[%emt 0:00:00]} Bd3 {[%emt 0:01:00]} 50. Rxd3 {[%emt 0:00:00]} cxd3 {[%emt 0:00:00]} 51. Kd2 {[%emt 0:01:30]} Rh5 {[%emt 0:01:00]} 52. Bxd3 {[%emt 0:00:00]} Ra7 {[%emt 0:00:30]} 53. Ke3 {[%emt 0:00:00]} Rxe5+ {[%emt 0:00:00]} 54. Kd4 {[%emt 0:00:00]} Kf6 {[%emt 0:00:00]} 55. Bxb5 {[%emt 0:00:00]} Rc7 {[%emt 0:00:00]} 56. a4 {[%emt 0:00:00]} Ke6 {[%emt 0:00:00]} 57. Bd3 {[%emt 0:01:15]} Kd6 {[%emt 0:00:00]} 58. a5 {[%emt 0:00:35]} Re1 {[%emt 0:00:00]} 59. Ra2 {[%emt 0:00:23]} Kc6 {[%emt 0:00:00]} 60. b4 {[%emt 0:01:01]} Kb7 {[%emt 0:00:00]} 61. b5 {[%emt 0:00:09]} Rc1 {[%emt 0:00:04]} 62. b6 {[%emt 0:02:07]} Rc8 {[%emt 0:04:56]} 63. Rb2 {[%emt 0:00:30]} Ra1 {[%emt 0:00:00]} 64. a6+ {[%emt 0:00:00]} Kb8 {[%emt 0:01:00]} 65. Bb5 {[%emt 0:01:00]} Rd1+ {[%emt 0:00:00]} 66. Ke5 {[%emt 0:00:00]} Rd8 {[%emt 0:00:00]} 67. Bc6 {[%emt 0:00:00]} Re1+ {[%emt 0:01:30]} 68. Kf4 {[%emt 0:00:00]} Ra1 {[%emt 0:00:00]} 69. a7+ {[%emt 0:00:00]} Rxa7 {[%emt 0:00:00]} 70. bxa7+ {[%emt 0:00:00]} Kxa7 {[%emt 0:00:00]} 1-0

[Event "Bangabandhu Premier Div League 2023-24"]
[Site "Dhaka"]
[Date "2024.02.02"]
[Round "2.4"]
[White "Rahman, Ziaur"]
[Black "Manon, Reja Neer"]
[Result "1-0"]
[ECO "D30"]
[WhiteElo "2428"]
[BlackElo "2169"]
[Annotator "RC"]
[PlyCount "93"]
[EventDate "2024.02.01"]
[EventCountry "BAN"]
[SourceTitle "playchess.com"]
[Source "ChessBase"]
[SourceQuality "1"]
[TimeControl "40/5400+30:1800+30"]

1. c4 {[%emt 0:05:33]} Nf6 {[%emt 0:01:01]} 2. Nf3 {[%emt 0:02:01]} c6 {[%emt 0:01:56]} 3. d4 {[%emt 0:01:59]} d5 {[%emt 0:00:30]} 4. e3 e6 {[%emt 0:00:07]} 5. Nbd2 {[%emt 0:01:00]} Nbd7 {[%emt 0:00:03]} 6. b3 {[%emt 0:00:48]} Bd6 {[%emt 0:00:23]} 7. Bb2 {[%emt 0:00:06]} b6 {[%emt 0:00:27]} 8. Bd3 {[%emt 0:00:16]} Bb7 {[%emt 0:00:12]} 9. e4 {[%emt 0:02:48]} dxe4 {[%emt 0:00:33]} 10. Nxe4 {[%emt 0:00:58]} Nxe4 {[%emt 0:00:44]} 11. Bxe4 {[%emt 0:00:08]} Nf6 {[%emt 0:00:35]} 12. Bc2 {[%emt 0:01:22]} Bb4+ {[%emt 0:32:43]} 13. Kf1 {[%emt 0:00:19]} Be7 {[%emt 0:08:25]} 14. Qe2 {[%emt 0:04:17]} Qc7 {[%emt 0:06:42]} 15. Re1 {[%emt 0:11:42]} Rd8 {[%emt 0:08:48]} 16. h4 {[%emt 0:06:33]} c5 {[%emt 0:01:26]} 17. dxc5 {[%emt 0:03:51]} Bxc5 {[%emt 0:06:39]} 18. Bxf6 {[%emt 0:04:20]} gxf6 {[%emt 0:00:17]} 19. Be4 {[%emt 0:01:04]} Bb4 {[%emt 0:04:18]} 20. Rb1 {[%emt 0:00:14]} h5 {[%emt 0:04:40]} 21. Rh3 {[%emt 0:08:38]} Rg8 {[%emt 0:00:13]} 22. Bxb7 {[%emt 0:06:48]} Qxb7 {[%emt 0:00:01]} 23. a3 {[%emt 0:01:38]} Bxa3 {[%emt 0:05:26]} 24. b4 {[%emt 0:00:09]} Qe7 {[%emt 0:00:01]} 25. Qc2 {[%emt 0:04:36]} b5 {[%emt 0:14:08]} 26. Qc3 {[%emt 0:02:22]} bxc4 {[%emt 0:00:04]} 27. Qxa3 {[%emt 0:01:10]} Rd3 {[%emt 0:00:03]} 28. Qa4+ {[%emt 0:02:01]} Kf8 {[%emt 0:00:47]} 29. Qc6 {[%emt 0:00:48]} Rg4 {[%emt 0:00:02]} 30. Rg3 {[%emt 0:06:10]} Rb3 {[%emt 0:01:09]} 31. Qc8+ {[%emt 0:02:22]} Kg7 {[%emt 0:00:20]} 32. Rxb3 {[%emt 0:02:40]} cxb3 {[%emt 0:00:04]} 33. Qc3 {[%emt 0:00:07]} a5 {[%emt 0:02:54]} 34. bxa5 {[%emt 0:02:35]} Qb7 {[%emt 0:00:01]} 35. Nd2 {[%emt 0:02:12]} b2 {[%emt 0:00:26]} 36. Qb3 {[%emt 0:03:07]} Qa6+ {[%emt 0:01:46]} 37. Kg1 {[%emt 0:00:18]} Qxa5 {[%emt 0:00:27]} 38. Qxb2 {[%emt 0:01:22]} Rxg3 {[%emt 0:00:28]} 39. fxg3 {[%emt 0:00:02]} Qd5 {[%emt 0:00:38]} 40. Nf1 {[%emt 0:00:40]} Qc5+ {[%emt 0:00:30]} 41. Qf2 {[%emt 0:31:24]} Qb4 {[%emt 0:30:31]} 42. Qf3 {[%emt 0:01:41]} Kg6 {[%emt 0:00:00]} 43. Qd3+ {[%emt 0:00:00]} f5 {[%emt 0:00:00]} 44. Qd8 {[%emt 0:00:00]} Qg4 {[%emt 0:00:00]} 45. Nh2 {[%emt 0:00:00]} Qe2 {[%emt 0:00:00]} 46. Qg5+ {[%emt 0:00:00]} Kh7 {[%emt 0:00:00]} 47. Nf3 {[%emt 0:00:00]} 1-0

[Event "Bangabandhu Premier Div League 2023-24"]
[Site "Dhaka"]
[Date "2024.02.02"]
[Round "2.5"]
[White "Abu Sufian, Shakil"]
[Black "Islam, M.M. Zahirul"]
[Result "1-0"]
[ECO "C11"]
[WhiteElo "2199"]
[BlackElo "1876"]
[Annotator "RC"]
[PlyCount "69"]
[EventDate "2024.02.01"]
[EventCountry "BAN"]
[SourceTitle "playchess.com"]
[Source "ChessBase"]
[SourceQuality "1"]
[TimeControl "40/5400+30:1800+30"]

1. e4 {[%emt 0:00:04]} e6 {[%emt 0:00:09]} 2. d4 {[%emt 0:00:24]} d5 {[%emt 0:00:09]} 3. Nc3 {[%emt 0:00:12]} Nf6 {[%emt 0:00:28]} 4. e5 {[%emt 0:00:19]} Nfd7 {[%emt 0:00:18]} 5. f4 c5 {[%emt 0:00:42]} 6. Nf3 {[%emt 0:00:20]} Nc6 {[%emt 0:00:36]} 7. Be3 {[%emt 0:00:24]} Be7 {[%emt 0:03:17]} 8. Qd2 {[%emt 0:00:28]} a6 {[%emt 0:02:27]} 9. dxc5 {[%emt 1:32:49]} Bxc5 {[%emt 0:08:00]} 10. Bxc5 {[%emt 0:00:00]} Nxc5 {[%emt 0:00:06]} 11. Bd3 {[%emt 0:00:00]} Bd7 {[%emt 0:04:37]} 12. a3 {[%emt 0:00:00]} Na5 {[%emt 0:07:39]} 13. Qf2 {[%emt 0:02:00]} Rc8 {[%emt 0:04:39]} 14. O-O {[%emt 0:00:00]} Nxd3 {[%emt 0:00:23]} 15. cxd3 {[%emt 0:00:00]} Nb3 {[%emt 0:01:06]} 16. Rad1 {[%emt 0:00:00]} O-O {[%emt 0:02:27]} 17. Nd4 {[%emt 0:02:00]} Qb6 {[%emt 0:09:18]} 18. Nxb3 {[%emt 0:00:00]} Qxb3 {[%emt 0:00:05]} 19. Rd2 {[%emt 0:00:00]} f6 {[%emt 0:02:12]} 20. exf6 {[%emt 0:00:00]} Rxf6 {[%emt 0:02:33]} 21. Qd4 {[%emt 0:00:00]} Rc6 {[%emt 0:11:43]} 22. Rdf2 {[%emt 0:00:00]} Qb6 {[%emt 0:38:36]} 23. Ne2 {[%emt 0:00:00]} Qc7 {[%emt 0:00:00]} 24. Qe3 {[%emt 0:00:00]} Rc2 {[%emt 0:00:00]} 25. Nd4 {[%emt 0:00:00]} Rxf2 {[%emt 0:00:00]} 26. Rxf2 {[%emt 0:00:00]} h6 {[%emt 0:00:00]} 27. h4 {[%emt 0:00:00]} Rg6 {[%emt 0:00:00]} 28. g3 {[%emt 0:00:00]} Qd8 {[%emt 0:00:00]} 29. Kh2 {[%emt 0:00:00]} Bc8 {[%emt 0:00:00]} 30. Rc2 {[%emt 0:00:00]} Qd7 {[%emt 0:00:00]} 31. Qc1 {[%emt 0:00:00]} e5 {[%emt 0:00:00]} 32. Rxc8+ {[%emt 0:00:00]} Kh7 {[%emt 0:00:00]} 33. f5 {[%emt 0:00:00]} Rg4 {[%emt 0:00:00]} 34. Ne6 {[%emt 0:00:00]} Qa4 {[%emt 0:00:00]} 35. Nf8+ {[%emt 0:00:00]} 1-0

[Event "Bangabandhu Premier Div League 2023-24"]
[Site "Dhaka"]
[Date "2024.02.02"]
[Round "2.5"]
[White "Mehdi Hasan Parag"]
[Black "Swarnavo Choudhury"]
[Result "0-1"]
[ECO "B48"]
[WhiteElo "2171"]
[BlackElo "2056"]
[Annotator "RC"]
[PlyCount "138"]
[EventDate "2024.02.01"]
[EventCountry "BAN"]
[SourceTitle "playchess.com"]
[Source "ChessBase"]
[SourceQuality "1"]
[TimeControl "40/5400+30:1800+30"]

1. e4 {[%emt 0:00:37]} c5 {[%emt 0:00:00]} 2. Nf3 {[%emt 0:00:31]} e6 {[%emt 0:00:33]} 3. d4 {[%emt 0:00:13]} cxd4 {[%emt 0:00:09]} 4. Nxd4 {[%emt 0:00:18]} Nc6 {[%emt 0:00:08]} 5. Nc3 {[%emt 0:00:06]} Qc7 {[%emt 0:00:03]} 6. Be3 {[%emt 0:00:09]} a6 {[%emt 0:00:05]} 7. a3 {[%emt 0:00:12]} Nf6 {[%emt 0:00:45]} 8. f4 d6 {[%emt 0:10:14]} 9. Bd3 Be7 {[%emt 0:05:14]} 10. Qf3 {[%emt 0:01:55]} O-O {[%emt 0:01:04]} 11. O-O {[%emt 0:00:09]} Nxd4 {[%emt 0:01:06]} 12. Bxd4 {[%emt 0:00:03]} e5 {[%emt 0:00:06]} 13. fxe5 {[%emt 0:02:37]} dxe5 {[%emt 0:00:03]} 14. Qg3 {[%emt 0:02:15]} Bc5 {[%emt 0:00:52]} 15. Bxc5 {[%emt 0:00:39]} Qxc5+ {[%emt 0:00:03]} 16. Kh1 {[%emt 0:00:20]} Kh8 {[%emt 0:20:44]} 17. Rf3 {[%emt 0:06:36]} Qe7 {[%emt 0:01:39]} 18. Raf1 {[%emt 0:04:43]} Nh5 {[%emt 0:05:17]} 19. Qf2 {[%emt 0:00:17]} Be6 {[%emt 0:06:55]} 20. Qe3 {[%emt 0:08:10]} Nf4 {[%emt 0:03:20]} 21. Rg3 {[%emt 0:04:09]} Rad8 {[%emt 0:10:08]} 22. Rgf3 {[%emt 0:13:31]} Qd6 {[%emt 0:15:40]} 23. Qf2 {[%emt 0:03:02]} Qe7 {[%emt 0:02:43]} 24. Qg3 {[%emt 0:01:09]} f6 {[%emt 0:06:33]} 25. Qh4 {[%emt 0:03:20]} Ng6 {[%emt 0:01:50]} 26. Qf2 {[%emt 0:00:16]} Nf4 {[%emt 0:00:28]} 27. h3 {[%emt 0:02:44]} Nxd3 {[%emt 0:02:45]} 28. cxd3 {[%emt 0:00:22]} Rd4 {[%emt 0:00:53]} 29. Ne2 {[%emt 0:02:20]} Rd7 {[%emt 0:00:14]} 30. Rc1 {[%emt 0:03:54]} Rfd8 {[%emt 0:00:14]} 31. Rc3 {[%emt 0:00:24]} Qf7 {[%emt 0:03:57]} 32. Ng3 {[%emt 0:00:30]} Qg6 {[%emt 0:00:23]} 33. Kh2 {[%emt 0:00:22]} Qf7 {[%emt 0:00:49]} 34. Nf1 {[%emt 0:04:58]} Qe7 {[%emt 0:00:41]} 35. Qc2 {[%emt 0:03:43]} Rd4 {[%emt 0:01:07]} 36. b4 {[%emt 0:02:03]} h6 {[%emt 0:00:47]} 37. Nd2 {[%emt 0:00:50]} Kh7 {[%emt 0:00:32]} 38. Rg3 {[%emt 0:00:21]} R4d7 {[%emt 0:00:35]} 39. Nf3 {[%emt 0:00:42]} g6 {[%emt 0:00:38]} 40. Qf2 {[%emt 0:04:47]} Bf7 {[%emt 0:00:22]} 41. Kh1 {[%emt 0:33:05]} Rc7 {[%emt 0:10:14]} 42. Rxc7 {[%emt 0:00:00]} Qxc7 {[%emt 0:00:20]} 43. Kh2 {[%emt 0:00:00]} Qe7 {[%emt 0:03:12]} 44. Nh4 {[%emt 0:00:00]} Qe6 {[%emt 0:13:44]} 45. Rf3 {[%emt 0:00:00]} Rd6 {[%emt 0:01:07]} 46. Qa7 {[%emt 0:00:00]} Qd7 {[%emt 0:00:29]} 47. Qf2 {[%emt 0:00:00]} Qe6 {[%emt 0:04:14]} 48. Qg3 {[%emt 0:00:00]} Rd8 {[%emt 0:00:38]} 49. Rf2 {[%emt 0:00:00]} g5 {[%emt 0:00:48]} 50. Nf3 {[%emt 0:00:00]} Bh5 {[%emt 0:00:11]} 51. Ne1 {[%emt 0:00:00]} Rc8 {[%emt 0:00:35]} 52. Qe3 {[%emt 0:00:00]} Kg7 {[%emt 0:00:34]} 53. Qa7 {[%emt 0:00:00]} Qd7 {[%emt 0:00:29]} 54. Nc2 {[%emt 0:00:00]} Bf7 {[%emt 0:00:11]} 55. Qe3 {[%emt 0:00:00]} Bh5 {[%emt 0:00:42]} 56. d4 {[%emt 0:00:00]} exd4 {[%emt 0:00:22]} 57. Nxd4 {[%emt 0:00:00]} Qd6+ {[%emt 0:00:49]} 58. g3 {[%emt 0:00:00]} Bg6 {[%emt 0:00:08]} 59. Nf3 {[%emt 0:02:17]} Re8 {[%emt 0:01:34]} 60. Rd2 {[%emt 0:01:44]} Qe6 {[%emt 0:00:00]} 61. e5 {[%emt 0:00:52]} fxe5 {[%emt 0:00:00]} 62. Qc3 {[%emt 0:05:40]} Be4 {[%emt 0:00:29]} 63. Ne1 {[%emt 0:00:40]} Bc6 {[%emt 0:00:19]} 64. Qe3 {[%emt 0:01:51]} Rf8 {[%emt 0:00:58]} 65. Nd3 {[%emt 0:02:03]} Rf1 {[%emt 0:00:29]} 66. Nf2 {[%emt 0:00:11]} Qf6 {[%emt 0:00:41]} 67. Re2 {[%emt 0:01:39]} Ra1 {[%emt 0:00:21]} 68. Ne4 {[%emt 0:02:10]} Qf1 {[%emt 0:00:27]} 69. g4 {[%emt 0:00:58]} Bxe4 {[%emt 0:00:11]} 0-1

[Event "Bangabandhu Premier Div League 2023-24"]
[Site "Dhaka"]
[Date "2024.02.02"]
[Round "2.6"]
[White "Sanket Chakravarty"]
[Black "Mohammad Nubairshah Shaikh"]
[Result "0-1"]
[ECO "D78"]
[WhiteElo "2361"]
[BlackElo "2428"]
[Annotator "RC"]
[PlyCount "56"]
[EventDate "2024.02.01"]
[EventCountry "BAN"]
[SourceTitle "playchess.com"]
[Source "ChessBase"]
[SourceQuality "1"]
[TimeControl "40/5400+30:1800+30"]

1. c4 {[%emt 0:08:12]} Nf6 {[%emt 0:00:03]} 2. Nf3 {[%emt 0:00:19]} g6 {[%emt 0:00:57]} 3. d4 {[%emt 0:00:19]} Bg7 {[%emt 0:00:58]} 4. g3 {[%emt 0:00:30]} c6 {[%emt 0:00:30]} 5. Nc3 {[%emt 0:00:30]} d5 {[%emt 0:00:30]} 6. Bg2 {[%emt 0:01:17]} dxc4 7. O-O {[%emt 0:05:27]} O-O {[%emt 0:00:32]} 8. e4 {[%emt 0:08:42]} b5 {[%emt 0:00:21]} 9. Qc2 {[%emt 0:01:21]} a5 {[%emt 0:07:18]} 10. Rd1 {[%emt 0:02:01]} Na6 {[%emt 0:03:05]} 11. a3 {[%emt 0:14:29]} Be6 {[%emt 0:06:06]} 12. Ne5 {[%emt 0:04:07]} Qc8 {[%emt 0:00:25]} 13. Nxc6 {[%emt 0:01:21]} Qxc6 {[%emt 0:00:10]} 14. d5 {[%emt 0:00:11]} Bxd5 {[%emt 0:00:45]} 15. exd5 {[%emt 0:01:03]} Qd7 {[%emt 0:00:12]} 16. d6 {[%emt 0:06:25]} Rad8 {[%emt 0:04:55]} 17. dxe7 {[%emt 0:13:03]} Qxe7 {[%emt 0:00:03]} 18. Nxb5 {[%emt 0:01:08]} Rxd1+ {[%emt 0:00:33]} 19. Qxd1 {[%emt 0:00:07]} Rd8 {[%emt 0:00:02]} 20. Qf1 {[%emt 0:00:10]} Nc5 {[%emt 0:00:10]} 21. Bf4 {[%emt 0:00:30]} Nd3 {[%emt 0:00:55]} 22. Bc7 {[%emt 0:12:18]} Rd7 {[%emt 0:02:16]} 23. Bxa5 {[%emt 0:00:27]} Qc5 {[%emt 0:00:27]} 24. a4 {[%emt 0:04:46]} Ng4 {[%emt 0:00:01]} 25. Re1 {[%emt 0:09:24]} Ndxf2 {[%emt 0:09:05]} 26. Re8+ {[%emt 0:01:02]} Bf8 {[%emt 0:00:01]} 27. Bf3 {[%emt 0:00:18]} Ne4+ {[%emt 0:00:26]} 28. Kh1 {[%emt 0:00:17]} Nxg3+ {[%emt 0:00:05]} 0-1

[Event "Bangabandhu Premier Div League 2023-24"]
[Site "Dhaka"]
[Date "2024.02.02"]
[Round "2.6"]
[White "Rahman, Syed Mahfuzur"]
[Black "Pranav Vijay"]
[Result "0-1"]
[ECO "E15"]
[WhiteElo "2087"]
[BlackElo "2252"]
[Annotator "RC"]
[PlyCount "55"]
[EventDate "2024.02.01"]
[EventCountry "BAN"]
[SourceTitle "playchess.com"]
[Source "ChessBase"]
[SourceQuality "1"]
[TimeControl "40/5400+30:1800+30"]

1. d4 {[%emt 0:04:56]} Nf6 {[%emt 0:00:08]} 2. Nf3 {[%emt 0:01:08]} e6 {[%emt 0:00:09]} 3. c4 {[%emt 0:00:21]} b6 {[%emt 0:00:24]} 4. g3 {[%emt 0:00:19]} Ba6 {[%emt 0:01:38]} 5. b3 {[%emt 0:04:31]} d5 {[%emt 0:03:04]} 6. Bg2 {[%emt 0:01:02]} dxc4 {[%emt 0:04:48]} 7. Ne5 {[%emt 0:07:16]} Bb4+ {[%emt 0:00:10]} 8. Kf1 {[%emt 0:01:01]} Bd6 {[%emt 0:00:10]} 9. Nxc4 {[%emt 0:01:38]} Nd5 {[%emt 0:00:12]} 10. Bb2 {[%emt 0:05:21]} Nc6 {[%emt 0:05:41]} 11. Kg1 {[%emt 0:09:45]} O-O {[%emt 0:05:30]} 12. e4 {[%emt 0:05:31]} Nde7 {[%emt 0:00:15]} 13. Nbd2 {[%emt 0:10:03]} Qd7 {[%emt 0:24:59]} 14. a3 {[%emt 0:05:05]} Rad8 {[%emt 0:06:51]} 15. Nf3 {[%emt 0:12:10]} Bc5 {[%emt 0:03:21]} 16. Nce5 {[%emt 0:15:44]} Qc8 {[%emt 0:41:10]} 17. Qc2 {[%emt 0:09:30]} Nxd4 {[%emt 0:00:00]} 18. Nxd4 {[%emt 0:00:13]} Bxd4 {[%emt 0:00:00]} 19. Bf3 {[%emt 0:00:40]} c5 {[%emt 0:00:00]} 20. Kg2 {[%emt 0:00:17]} Qc7 {[%emt 0:00:00]} 21. Bxd4 {[%emt 0:02:31]} Rxd4 {[%emt 0:00:00]} 22. Nc4 {[%emt 0:00:49]} Rfd8 {[%emt 0:00:00]} 23. Rhd1 {[%emt 0:00:09]} Nc6 {[%emt 0:00:00]} 24. Nb2 {[%emt 0:01:33]} Rxd1 {[%emt 0:00:00]} 25. Rxd1 {[%emt 0:00:06]} Nd4 {[%emt 0:00:00]} 26. Qc3 {[%emt 0:00:46]} Bb7 {[%emt 0:00:00]} 27. Nc4 {[%emt 0:00:57]} f5 {[%emt 0:00:00]} 28. Kf1 {[%emt 0:00:00]} 0-1